Cogmind - Beta 15 @@@ ROGUE MODE // 2025.05.24 @ 15:03:44 Player: Epsilon 11 Result: Destroyed by GV-X9K(R) with Subdweller Beam Cannon Performance ------------- Evolutions (0) 0 Regions Visited (2) 400 Robots Destroyed (19) 95 Value Destroyed (307) 307 Prototype IDs (3) 60 Alien Tech Used (0) 0 Bonus (0) 0 TOTAL SCORE: 862 Bonus ------- None Cogmind --------- Core Integrity 0/250 Matter 248/300 Energy 42/100 System Corruption 0% Temperature Cool (9) Movement Rolling (110) Location -10/Subcaves Parts ------- > --- POWER (1) -------- (None) > --- PROPULSION (2) --- Subdweller Monowheel > --- UTILITY (2) ------ Medium Storage Unit Subdweller Optics > --- WEAPON (2) ------- Subdweller Laser Assault Rifle > --- INVENTORY (10) --- Large Storage Unit Terrain Scanner Seismic Detector Authchip [R/Combat] Medium Laser Assault Rifle Datajack Hammer Peak State ------------ > --- POWER ------------ (None) > --- PROPULSION ------- Subdweller Monowheel Subdweller Monowheel > --- UTILITY ---------- Medium Storage Unit Subdweller Optics > --- WEAPON ----------- Subdweller Laser Subdweller Machine Gun > --- INVENTORY -------- Large Storage Unit Terrain Scanner Seismic Detector Authchip [R/Combat] Medium Laser Assault Rifle Assault Rifle Datajack Hammer Piercing Trap [Rating: 12] Favorites ----------- Power Light Ion Engine Engine Light Ion Engine Propulsion Compact Wheel Wheel Compact Wheel Utility Medium Storage Unit Device Subdweller Optics Storage Medium Storage Unit Protection Weapon Shielding Weapon Assault Rifle Energy Gun Subdweller Laser Ballistic Gun Assault Rifle Impact Weapon Hammer Build | -11 -10 -10 ------- Run | Yrd Mat Sub Slots Evolved . | . . . Power . | . . . Propulsion . | . . . Utility . | . . . Weapon . | . . . Parts Attached 17 | 6 3 8 Power 2 | 1 . 1 Engine 2 | 1 . 1 Core . | . . . Reactor . | . . . Propulsion 4 | 2 . 2 Treads . | . . . Leg . | . . . Wheel 4 | 2 . 2 Hover . | . . . Flight . | . . . Utility 4 | 1 2 1 Device 1 | . . 1 Storage 2 | 1 1 . Processor . | . . . Hackware . | . . . Protection 1 | . 1 . Artifact . | . . . Weapon 7 | 2 1 4 Energy Gun 2 | . . 2 Energy Cannon . | . . . Ballistic Gun 4 | 2 1 1 Ballistic Cannon . | . . . Launcher . | . . . Special Weapon . | . . . Impact Weapon 1 | . . 1 Slashing Weapon . | . . . Piercing Weapon . | . . . Special Melee Weapon . | . . . Unidentified Prototypes . | . . . Parts Lost 7 | . 1 6 Power 2 | . 1 1 Propulsion 3 | . . 3 Utility 1 | . . 1 Weapon 1 | . . 1 Highest Loss Streak 4 | . 1 4 To Critical Strikes . | . . . Average Backups 6 | . 6 8 Power . | . 1 . Propulsion . | . . . Utility 3 | . 2 4 Weapon 2 | . 1 2 Tool/Special . | . . . Unused Backups 5 | . . 5 Power . | . . . Propulsion . | . . . Utility 4 | . . 4 Weapon . | . . . Tool/Special 1 | . . 1 Average Slot Usage (%) 92 | . 97 84 Engine 10 | . 13 3 Wheel 26 | . 28 24 Device 1 | . . 4 Storage 14 | . 14 14 Protection 10 | . 11 9 Energy Gun 2 | . . 5 Ballistic Gun 23 | . 28 16 Impact Weapon 2 | . . 5 Peak Build Rating 12 | 6 8 12 Average Rating 7 | 4 7 8 On Entrance 4 | . 6 7 Naked Turns . | . . . Heaviest Build 23 | 11 18 23 Greatest Support 40 | 26 26 40 Greatest Overweight (x) 6 | . . 6 Average Overweight (x) . | . . . Largest Inventory Capacity 10 | 8 10 10 Average Capacity 9 | 7 9 10 Most Carried 10 | 1 8 10 Average Carried 7 | . 6 8 Final Capacity 10 | 8 10 10 Final Carried 8 | 1 8 8 Class Distribution -------------------- 100% | Mutant Dominant Class ---------------- Mutant | -10/Materials Mutant | -10/Subcaves Resources | -11 -10 -10 ----------- Run | Yrd Mat Sub Matter Collected 476 | 211 136 129 Remotely . | . . . Salvage Created 428 | . 171 257 Parts 34 | . 15 19 Haulers Intercepted . | . . . Recyclers Shooed . | . . . Parts Field Recycled . | . . . Retrieved Matter . | . . . Parts Self-Destructed 6 | . . 6 Prevented . | . . . Kills | -11 -10 -10 ------- Run | Yrd Mat Sub Combat Hostiles Destroyed 17 | . 9 8 Guns 17 | . 9 8 Classes Destroyed 4 | . 3 1 Worker 1 | . 1 . Watcher 1 | . 1 . Swarmer 13 | . 9 4 Subdweller 4 | . . 4 Best Kill Streak 7 | . 7 4 Combat Bots Only 4 | . 3 4 Max Kills in Single Turn 1 | . 1 1 Gunslinging . | . . . Exploded . | . . . Melee . | . . . Uniques/NPCs Destroyed . | . . . Combat | -11 -10 -10 -------- Run | Yrd Mat Sub Hostile Shots Fired 92 | . 46 46 Missed 22 | . 10 12 Hits 70 | . 36 34 Projectile 70 | . 36 34 Damage Taken 893 | . 432 461 Core 262 | . 134 128 Absorbed by Shields . | . . . Redirected to Shielding 54 | . 48 6 Core Remaining (%) 100 | 100 . . Volleys Fired 43 | . 25 18 Largest 2 | . 2 2 Hottest 90 | . 40 90 Shots Fired 83 | . 50 33 Gun 83 | . 50 33 Cannon . | . . . Launcher . | . . . Special . | . . . Kinetic 66 | . 50 16 Thermal 17 | . . 17 Explosive . | . . . Electromagnetic . | . . . Robot Hit Streak 9 | . 9 9 Robot Miss Streak 6 | . 6 5 Penetration Max . | . . . Secondary Targets 3 | . 1 2 Max Gunslinging Chain 1 | . 1 1 Shots Hit Robots 44 | . 24 20 Core Hits 23 | . 11 12 Critical Kills 2 | . . 2 Critical Parts Destroyed . | . . . Critical Strikes 4 | . . 4 Burn 2 | . . 2 Destroy 2 | . . 2 Melee Attacks 9 | . . 9 Impact 9 | . . 9 Slashing . | . . . Piercing . | . . . Sneak Attacks . | . . . Combat Hostiles . | . . . Follow-up Attacks . | . . . Damage Inflicted 660 | . 301 359 Guns 660 | . 301 359 Cannons . | . . . Explosions . | . . . Melee . | . . . Ramming . | . . . Kinetic 430 | . 301 129 Thermal 230 | . . 230 Explosive . | . . . Electromagnetic . | . . . Impact . | . . . Slashing . | . . . Piercing . | . . . Highest Corruption . | . . . Average Corruption . | . . . Corruption Purged . | . . . Corruption Blocked . | . . . Overload Shots . | . . . Overflow Damage . | . . . Projectiles . | . . . Explosions . | . . . Melee . | . . . Knockbacks . | . . . Impact . | . . . Kinetic . | . . . Secondary . | . . . Self-Inflicted Damage . | . . . Shots . | . . . Rammed . | . . . Targets Rammed . | . . . Kicked . | . . . Crushed . | . . . Highest Temperature 6 | . 6 . Average Temperature 6 | . 6 . Received Heat Transfer 159 | . 48 111 Siege Activations . | . . . Martial Activations . | . . . Shielding Activations . | . . . Robots Disrupted . | . . . Combat Hostiles . | . . . Robots Corrupted . | . . . Combat Hostiles . | . . . Parts Fried . | . . . Impact Corruptions . | . . . Robots Melted . | . . . Combat Hostiles . | . . . Parts Melted . | . . . Heat Transferred 533 | . . 533 Parts Sabotaged . | . . . Parts Stolen . | . . . Parts Stripped . | . . . Power Chain Reactions . | . . . Alert | -11 -10 -10 ------- Run | Yrd Mat Sub Maximum Alert Level . | . . . Low Security (%) 100 | 100 100 . Level 1 . | . . . Level 2 . | . . . Level 3 . | . . . Level 4 . | . . . Level 5 . | . . . High Security . | . . . Max Security . | . . . Peak Influence 171 | . 171 . Initial . | . . . Average 70 | . 75 . Influence Increases 399 | . 289 110 Destroy 0b10 Robot/C 260 | . 180 80 Destroy 0b10 Robot/NC 10 | . 10 . Destroy Leader 32 | . 32 . Successful Hack 22 | . 22 . Lose Combat Pursuer 75 | . 45 30 Influence Decreases 379 | . 172 207 Entered New Map 57 | . . 57 Time Decay 262 | . 162 100 Lost Part 60 | . 10 50 Squads Dispatched . | . . . Investigation . | . . . Extermination . | . . . Reinforcement . | . . . Assault . | . . . Garrison . | . . . Intercept . | . . . Searches Triggered . | . . . Construction Impeded . | . . . Haulers Reinforced . | . . . Active Scanning Responses . | . . . Cargo Convoy Interrupts . | . . . Stealth | -11 -10 -10 --------- Run | Yrd Mat Sub Distress Signals 3 | . 3 . Communications Jammed . | . . . Distress Signals . | . . . Times Spotted 34 | . 21 13 Peak Tracking Total 6 | . 6 6 Tactical Retreats 4 | . 3 1 Traps | -11 -10 -10 ------- Run | Yrd Mat Sub Traps Triggered . | . . . Indirectly . | . . . Trap Hack Attempts . | . . . Triggered . | . . . Disarmed . | . . . Reprogrammed . | . . . Reused 1 | . . 1 Traps Extracted . | . . . Installed 1 | . . 1 Triggered . | . . . Most Traps Carried 1 | . . 1 Machines | -11 -10 -10 ---------- Run | Yrd Mat Sub Machines Disabled . | . . . Max in Single Turn . | . . . Machines Repaired . | . . . Machines Dismantled . | . . . Machines Sabotaged . | . . . Overloaded Fab Kills . | . . . Hacking | -11 -10 -10 --------- Run | Yrd Mat Sub Machines Accessed 7 | . 7 . Terminals 6 | . 6 . Fabricators . | . . . Repair Stations . | . . . Recycling Units 1 | . 1 . Scanalyzers . | . . . Garrison Access . | . . . Total Hacks 18 | . 18 . Successful 10 | . 10 . Failed 8 | . 8 . Catastrophic 1 | . 1 . Database Lockouts . | . . . Manual 11 | . 11 . Terminals 16 | . 16 . Fabricators . | . . . Repair Stations . | . . . Recycling Units 2 | . 2 . Scanalyzers . | . . . Garrison Access . | . . . Terminal Hacks 3 | . 3 . Prototype ID Bank 2 | . 2 . Locate Traps 1 | . 1 . Fabricator Hacks . | . . . Repair Station Hacks . | . . . Recycling Unit Hacks 2 | . 2 . Report Inventory 1 | . 1 . Retrieve Components 1 | . 1 . Scanalyzer . | . . . Garrison Access Hacks . | . . . Unauthorized Hacks 5 | . 5 . Terminals 5 | . 5 . Skim 5 | . 5 . Fabricators . | . . . Repair Stations . | . . . Recycling Units . | . . . Scanalyzers . | . . . Garrison Access . | . . . Data Cores Recovered . | . . . Used . | . . . Hacking Detections 6 | . 6 . Full Trace Events . | . . . Feedback Events . | . . . Feedback Blocked . | . . . Robot Schematics Acquired . | . . . Robots Built . | . . . Authchips . | . . . Time . | . . . Total Robot Build Rating . | . . . Part Schematics Acquired . | . . . Parts Built . | . . . Authchips . | . . . Time . | . . . Total Part Build Rating . | . . . Parts Repaired . | . . . Time . | . . . Parts Recycled . | . . . Recycled Matter . | . . . Retrieved Matter . | . . . Retrieved Components 4 | . 4 . Parts Scanalyzed . | . . . Part Schematics Acquired . | . . . Parts Damaged . | . . . Bothacking | -11 -10 -10 ------------ Run | Yrd Mat Sub Used RIF Installer . | . . . Robots Hacked . | . . . Non-combat . | . . . Combat . | . . . Robot Hacks Applied . | . . . Relay Couplers Released . | . . . Fabnet Peak Effective % . | . . . Robots Rewired . | . . . Allies Hacked . | . . . Hacks Repelled . | . . . Allies | -11 -10 -10 -------- Run | Yrd Mat Sub Total Allies . | . . . Largest Group . | . . . Highest-Rated Group . | . . . Highest-Rated Ally . | . . . Total Orders . | . . . Ally Attacks . | . . . Total Damage . | . . . Kills . | . . . Allies Corrupted . | . . . Allies Melted . | . . . Intel | -11 -10 -10 ------- Run | Yrd Mat Sub Active Infowar (turns) 98 | . . 98 Optics 98 | . . 98 Robot Analysis Total . | . . . Derelict Logs Recovered 1 | . . 1 Drone Launches . | . . . Drone Recoveries . | . . . Exploration | -11 -10 -10 ------------- Run | Yrd Mat Sub Turns Passed 865 | 41 509 315 Spaces Moved 671 | 36 418 217 Core 9 | 2 . 7 Treads . | . . . Legs . | . . . Wheels 662 | 34 418 210 Hover . | . . . Flight . | . . . Fastest Speed 50 | 50 90 90 Average Speed 93 | 88 90 99 Slowest Speed 350 | 100 90 350 Overloaded Moves . | . . . Propulsion Burnouts . | . . . Robots Hopped . | . . . Potential Cave-ins . | . . . Cave-ins Triggered . | . . . Exploration Rate (%) 31 | 3 73 19 Regions Visited 2 Branch Regions 1 Pre-discovered Areas . | . . . Known Exits Taken . | . . . Unknown Exits Taken 2 | 1 1 . Scrap Searched . | . . . Spaces Dug . | . . . Terrain Destroyed . | . . . Melee . | . . . Projectile . | . . . AOE . | . . . Terrain Rammed . | . . . Walls Destroyed . | . . . Machines Disabled . | . . . Actions | -11 -10 -10 --------- Run | Yrd Mat Sub Total 808 | 42 500 266 Wait 53 | . 45 8 Move 669 | 35 417 217 Hop . | . . . Pick Up 10 | 1 7 2 Fast Attach 13 | 6 3 4 Attach 2 | . . 2 Detach 2 | . 1 1 Swap 3 | . . 3 Drop 3 | . 2 1 Fire 43 | . 25 18 Melee 9 | . . 9 Ram . | . . . Kick . | . . . Crush . | . . . Escape Stasis . | . . . Rewire . | . . . Trap 1 | . . 1 Miscellaneous . | . . . Route ------- -11/Scrapyard -10/Materials (discovered 5 exits: *Mat x3 / [*Min] / [*Sub]) -10/Subcaves (discovered 1 exit: [*Rec]) History --------- Turn | Location | Event 28 | -11/Scrapyard | Discovered new exit (range 15) 42 | -11/Scrapyard | Entered Materials 199 | -10/Materials | Discovered new exit (range 12) 308 | -10/Materials | Build established: Mutant 425 | -10/Materials | Discovered new exit (range 6) 516 | -10/Materials | Discovered new exit (range 6) 527 | -10/Materials | Identified exit to Materials 542 | -10/Materials | Derelicts attacked the area 551 | -10/Materials | Entered Subcaves 552 | -10/Subcaves | Core integrity fell below 50% 648 | -10/Subcaves | Shifting Twisted Machinery released Battle Rifle 649 | -10/Subcaves | Learned Materials trap positions 651 | -10/Subcaves | Shifting Twisted Machinery released Piercing Trap 689 | -10/Subcaves | Shifting Twisted Machinery released Sub. Machine Gun 777 | -10/Subcaves | Discovered new exit (range 14) 825 | -10/Subcaves | Lost 4 parts (1p2n1u) 851 | -10/Subcaves | A Subdweller sparked back to life 851 | -10/Subcaves | A Subdweller sparked back to life 851 | -10/Subcaves | A Subdweller sparked back to life 854 | -10/Subcaves | Core integrity fell below 20% 866 | -10/Subcaves | Destroyed by GV-X9K(R) with Subdweller Beam Cannon Last Messages --------------- 00812_ Flight Unit fries itself beyond repair. 00823_ Subatomizers dissect the Sub. Monowheel. 00832_ Acquired Sub. Monowheel. 00837_ Subatomizers dissect the Sub. Monowheel. 00837_ Acquired Sub. Monowheel. 00851_ KS-P5S(R) creaks and sparks as it begins to move. 00851_ GV-X9K(R) creaks and sparks as it begins to move. 00851_ 9N-04K(R) creaks and sparks as it begins to move. 00852_ Acquired 10 matter. 00853_ Dropped Piercing Trap. 00853_ Installed Piercing Trap. 00855_ Acquired 9 matter. IN-B0V(R) emerges from concealment. 00859_ Sub. Machine Gun destroyed. 00861_ KS-P5S(R) triggered Piercing Trap. 00861_ Spikes shoot up from the floor. 00861_ Sub. Monowheel destroyed. 00863_ KS-P5S(R) destroyed. 00864_ Subatomizers dissect the Sub. Optics. 00866_ 9N-04K(R) destroyed. Map ----- +----------------------------------------------------+ | ?????????????????????????????????????????????????? | | ?????????????????????????????????????????????????? | | ?????????????????????????????????????????????????? | | ?????????????????????????????????????????????????? | | ?????????????????????????????????????????????????? | | ?????????????????????????????????????????????????? | | ?????????????????????????????????????????????????? | | ?????????????????????????????????????????????????? | | ?????????????????????????????????????????????????? | | ?????????????????????????????????????????????????? | | ?????????????????????????????????????????????????? | | ?????????????????????????????????????????????????? | | ?????????????????????????????????????????????????? | | ?????????????????????????????????????????????????? | | ??????????####?###???????##"<###?????????????????? | | ?????? ??" # ???????# #????###???????#### | | ??????? ?? ?###### <#????# ####??## | | ??????? ??? %## < #????# #### | | ???????? ???# " % #?#### ## | | ?????? ### % & #### #### ## | | ???????# R % #?## ### | | ????????# R & # ##?## # ##?# | | ??????????# ### % ##!R& #### #??# ###### | | ??????????????????### % ##%%&& ### #??## # # | | ????????????????????# &&! ! ####" " " " | | ????????????????????# #@[& "" # "# # ##" | | ????????????????????# ##;# & ## """" " ##??## | | ????????????????????# #### !##" ###????? | | ????????????????????# ## "##" ### #??????? | | ????????????????????# %# " ####?###??????? | | ????????????????????# #### " "##?????????????# | | ???????????????????? ??## " [ #??????????????# | | ??????????????????? ???## " "#??????????????# | | ??????????????????? ????###" ??????????????# | | ??????????????????" ??????## #?????????????? | | ??????????????????" " " ???????? #?????????????? | | ?????????????????#"""" ""????????###?????????????? | | ?????????????????#####<##????????????????????????? | | ?????????????????????##??????????????????????????? | | ?????????????????????????????????????????????????? | | ?????????????????????????????????????????????????? | | ?????????????????????????????????????????????????# | | ?????????????????????????????????????????????????# | | ?????????????????????????????????????????????????# | | ?????????????????????????????????????????????????# | | ?????????????????????????????????????????????????# | | ?????????????????????????????????????????????????# | | ?????????????????????????????????????????????????# | | ?????????????????????????????????????????????????? | | ?????????????????????????????????????????????????? | +----------------------------------------------------+ Best States ------------- Heat Dissipation 25 Energy Generation 10 Energy Capacity 125 Matter Stores 261 Matter Capacity 300 Sight Range 21 Terrain Scan Density 10 Weapon Shielding 33 Evasion (%) 42 Authchip Count 1 Item Schematics ----------------- None Robot Schematics ------------------ None Fabricated ------------ Nothing Repaired ---------- Nothing Alien Tech Used ----------------- None Achievements -------------- None Challenges ------------ None Game ------ Seed GuidanceWarlordPit Manual? 0 Play Time 00:13:15 Cumulative 299.9 hours Start 2025.05.24 @ 14:52:23 End 2025.05.24 @ 15:03:44 Sessions 1 Manual Loads 0 Difficulty Rogue Special Mode None Game No. 138 Rogue 95 Adventurer 43 Explorer 0 Win Type - Total 6 Types 4/0/1/0/0/0/0/1/0/0 Lore% 81 Gallery% 71 Achievement% 65 Wizard Run 0 Options --------- Layout 0 ASCII 0 Keyboard 0 Movement Numpad Keybinds 0 Fullscreen 1 Font 24/Smallcaps Map View 76x50 Zoom Use 0% Tactical HUD 1 Map Filters NONE Filters NONE Steam 1 RUN: 470c34ab-7fdc-4015-828a-63bd1fa95ccc